fUST/lending_fUST_20240906
["ID","MTS","AMOUNT","RATE_DAILY","PERIOD"]
[337384799,1725635482061,-437.08156948,0.00020821,2]
[337384801,1725635482070,-500.0,0.00020821,2]
[337384803,1725635482079,-500.0,0.00020821,2]
[337384804,1725635482090,-601.88,0.00020821,2]
[337384807,1725635482099,-500.0,0.00020821,2]
[337384809,1725635482110,-548.95,0.00020821,2]
[337384811,1725635482121,-500.0,0.00020821,2]
[337384813,1725635482134,-587.02,0.00020821,2]
[337384815,1725635482145,-500.0,0.00020821,2]
[337384817,1725635482156,-570.98,0.00020821,2]
[337384819,1725635482166,-500.0,0.00020821,2]
[337384820,1725635482175,-500.0,0.00020821,2]
[337384822,1725635482185,-1624.21,0.00020821,2]
[337384824,1725635482195,-500.0,0.00020821,2]
[337384826,1725635482204,-500.0,0.00020821,2]
[337384828,1725635482214,-959.09,0.00020821,2]
[337384830,1725635482224,-500.0,0.00020821,2]
[337384832,1725635482237,-529.54,0.00020821,2]
[337384834,1725635482246,-500.0,0.00020821,2]
[337384836,1725635482256,-500.0,0.00020821,2]
[337384838,1725635482265,-500.0,0.00020821,2]
[337384840,1725635482274,-619.87,0.00020821,2]
[337384842,1725635482284,-500.0,0.00020821,2]
[337384843,1725635482293,-500.0,0.00020821,2]
[337384845,1725635482303,-500.0,0.00020821,2]
[337384847,1725635482313,-1123.51,0.00020821,2]
[337384849,1725635482323,-500.0,0.00020821,2]
[337384851,1725635482332,-500.0,0.00020821,2]
[337384853,1725635482342,-500.0,0.00020821,2]
[337384855,1725635482352,-500.0,0.00020821,2]
[337384857,1725635482362,-500.0,0.00020821,2]
[337384859,1725635482372,-500.0,0.00020821,2]
[337384861,1725635482383,-508.14524577,0.00020821,2]
[337384863,1725635482392,-1306.31,0.00020821,2]
[337384865,1725635482402,-500.0,0.00020821,2]
[337384867,1725635482412,-500.0,0.00020821,2]
[337384869,1725635482421,-500.0,0.00020821,2]
[337384871,1725635482431,-860.27,0.00020821,2]
[337384873,1725635482440,-559.04,0.00020821,2]
[337384875,1725635482450,-1022.33,0.00020821,2]
[337384877,1725635482461,-1335.92,0.00020821,2]
[337384879,1725635482472,-510.07574023,0.00020821,2]
[337384881,1725635482484,-1961.67,0.00020821,2]
[337384883,1725635482494,-899.05,0.00020821,2]
[337384885,1725635482504,-500.0,0.00020821,2]
[337384887,1725635482514,-1802.118153,0.00020821,2]
[337384889,1725635482524,-506.39592376,0.00020821,2]
[337384891,1725635482534,-619.65,0.00020821,2]
[337384893,1725635482543,-1802.118153,0.00020821,2]
[337384895,1725635482553,-500.0,0.00020821,2]
[337384897,1725635482563,-524.01,0.00020821,2]
[337384899,1725635482572,-500.0,0.00020821,2]
[337384901,1725635482582,-500.0,0.00020821,2]
[337384903,1725635482591,-400.22750099,0.00020821,2]
[337384905,1725635482601,-151.0,0.00020821,2]
[337384907,1725635482610,-500.0,0.00020821,2]
[337384909,1725635482620,-500.0,0.00020821,2]
[337384911,1725635482629,-500.0,0.00020821,2]
[337384913,1725635482638,-1054.39,0.00020821,2]
[337384915,1725635482647,-1709.92,0.00020821,2]
[337384921,1725635482703,-500.0,0.00020821,2]
[337384923,1725635482712,-608.17,0.00020821,2]
[337384925,1725635482722,-1974.51,0.00020821,2]
[337384927,1725635482734,-151.0,0.00020821,2]
[337384929,1725635482745,-500.0,0.00020821,2]
[337384931,1725635482756,-500.0,0.00020821,2]
[337384933,1725635482766,-500.0,0.00020821,2]
[337384935,1725635482775,-500.0,0.00020821,2]
[337384937,1725635482784,-500.0,0.00020821,2]
[337384939,1725635482794,-500.0,0.00020821,2]
[337384941,1725635482804,-151.0,0.00020821,2]
[337384943,1725635482813,-1144.39,0.00020821,2]
[337384945,1725635482823,-500.0,0.00020821,2]
[337384947,1725635482832,-500.0,0.00020821,2]
[337384949,1725635482842,-1367.3,0.00020821,2]
[337384951,1725635482851,-872.73,0.00020821,2]
[337384953,1725635482860,-500.0,0.00020821,2]
[337384955,1725635482869,-500.0,0.00020821,2]
[337384957,1725635482879,-151.0,0.00020821,2]
[337384959,1725635482888,-1320.77,0.00020821,2]
[337384961,1725635482898,-1389.96,0.00020821,2]
[337384963,1725635482908,-151.0,0.00020821,2]
[337384965,1725635482918,-500.0,0.00020821,2]
[337384967,1725635482928,-500.0,0.00020821,2]
[337384969,1725635482937,-751.95,0.00020821,2]
[337384971,1725635482947,-151.0,0.00020821,2]
[337384973,1725635482958,-500.0,0.00020821,2]
[337384975,1725635482967,-500.0,0.00020821,2]
[337384977,1725635482977,-571.12,0.00020821,2]
[337384979,1725635482991,-500.0,0.00020821,2]
[337384981,1725635483000,-1191.1,0.00020821,2]
[337384983,1725635483009,-500.0,0.00020821,2]
[337384985,1725635483019,-641.22572357,0.00020821,2]
[337384987,1725635483029,-1742.36,0.00020821,2]
[337384989,1725635483039,-6868.04,0.00020821,2]
[337384991,1725635483050,-500.0,0.00020821,2]
[337384993,1725635483061,-1225.08,0.00020821,2]
[337384995,1725635483070,-515.26,0.00020821,2]
[337384997,1725635483080,-1263.83,0.00020821,2]
[337384999,1725635483091,-1124.13,0.00020821,2]
[337385001,1725635483102,-151.0,0.00020821,2]
[337385004,1725635483113,-1248.325363,0.00020821,2]
[337385006,1725635483125,-669.78,0.00020821,2]
[337385008,1725635483137,-2764.07,0.00020821,2]
[337385010,1725635483148,-1248.325363,0.00020821,2]
[337385012,1725635483159,-1210.88,0.00020821,2]
[337385013,1725635483169,-500.0,0.00020821,2]
[337385014,1725635483179,-1286.07,0.00020821,2]
[337385015,1725635483189,-1140.026721,0.00020821,2]
[337385016,1725635483199,-500.0,0.00020821,2]
[337385017,1725635483208,-5445.49,0.00020821,2]
[337385018,1725635483218,-1140.026721,0.00020821,2]
[337385019,1725635483228,-500.0,0.00020821,2]
[337385020,1725635483241,-646.12,0.00020821,2]
[337385021,1725635483251,-458.35714578,0.00020821,2]
[337385022,1725635483261,-1576.49,0.00020821,2]
[337385023,1725635483271,-5532.11119205,0.00020821,2]
[337385024,1725635483694,-573.0,0.00020821,2]
[337385064,1725636003161,154.0,0.00012,10]
[337385076,1725636447276,-300.0,0.00017995,2]
[337385077,1725636447301,-24900.0,0.00017996,2]
[337385078,1725636447323,-565.84241099,0.000185,2]
[337385079,1725636447353,-150.112233,0.000186,2]
[337385080,1725636447376,-150.112233,0.000187,2]
[337385081,1725636447402,-150.112233,0.000188,2]
[337385082,1725636447427,-941.15787426,0.00018866,2]
[337385083,1725636447451,-150.112233,0.000189,2]
[337385084,1725636447477,-32191.78759644,0.00018966,2]
[337385589,1725636596997,-25419.33744638,0.00024,60]
[337385909,1725636635810,-270.54,0.00017991,2]
[337385911,1725636635871,-5410.0,0.00017991,2]
[337385912,1725636635884,-1727.25,0.00017991,2]
[337385913,1725636635895,-2113.8812214,0.00017991,2]
[337385915,1725636635910,-300.0,0.00018855,2]
[337385916,1725636635920,-823.51313996,0.00018856,2]
[337385917,1725636635930,-273.09,0.00018946,3]
[337385918,1725636635940,-1914.48238431,0.00018956,2]
[337385919,1725636635952,-542.01,0.00018956,2]
[337385921,1725636635983,-21413.51355409,0.00018956,2]
[337385922,1725636635996,-2415.61310705,0.00018956,2]
[337385923,1725636636009,-46650.62747215,0.00018956,2]
[337385924,1725636636019,-18526.2097234,0.00018956,2]
[337385925,1725636636029,-72936.2465176,0.00018966,2]
[337385926,1725636636039,-18526.2097234,0.00018966,2]
[337385927,1725636636049,-2074.00196304,0.00018976,2]
[337385928,1725636636060,-45823.65381235,0.00018976,2]
[337385929,1725636636072,-33275.90095561,0.00018976,2]
[337385930,1725636636082,-36468.1232588,0.00019067,2]
[337385931,1725636636093,-9263.1048617,0.00019067,2]
[337385932,1725636636104,-225.36561115,0.00019067,2]
[337385933,1725636636114,-500.0,0.00019067,2]
[337385934,1725636636124,-500.0,0.00019067,2]
[337385935,1725636636134,-500.0,0.00019067,2]
[337385936,1725636636145,-500.0,0.00019067,2]
[337385937,1725636636154,-500.0,0.00019067,2]
[337385938,1725636636164,-383.87178895,0.00019067,2]
[337385939,1725636636174,-500.0,0.00019067,2]
[337385940,1725636636183,-500.0,0.00019067,2]
[337385941,1725636636193,-500.0,0.00019067,2]
[337385942,1725636636203,-500.0,0.00019067,2]
[337385943,1725636636213,-500.0,0.00019067,2]
[337385944,1725636636224,-500.0,0.00019067,2]
[337385945,1725636636234,-500.0,0.00019067,2]
[337385946,1725636636246,-500.0,0.00019067,2]
[337385947,1725636636256,-500.0,0.00019067,2]
[337385948,1725636636265,-500.0,0.00019067,2]
[337385949,1725636636275,-500.0,0.00019067,2]
[337385950,1725636636285,-500.0,0.00019067,2]
[337385951,1725636636513,-500.0,0.00019067,2]
[337385952,1725636636523,-500.0,0.00019067,2]
[337385953,1725636636533,-500.0,0.00019067,2]
[337385954,1725636636543,-500.0,0.00019067,2]
[337385955,1725636636553,-500.0,0.00019067,2]
[337385956,1725636636563,-500.0,0.00019067,2]
[337385957,1725636636574,-500.0,0.00019067,2]
[337385958,1725636636583,-500.0,0.00019067,2]
[337385959,1725636636593,-500.0,0.00019067,2]
[337385960,1725636636603,-500.0,0.00019067,2]
[337385961,1725636636613,-500.0,0.00019067,2]
[337385962,1725636636623,-500.0,0.00019067,2]
[337385963,1725636636633,-315.74734959,0.00019067,2]
[337385964,1725636636643,-500.0,0.00019067,2]
[337385965,1725636636653,-500.0,0.00019067,2]
[337385966,1725636636663,-500.0,0.00019067,2]
[337385968,1725636636673,-300.0,0.00019067,2]
[337385970,1725636636683,-32457.5029242,0.00019068,2]
[337386037,1725636638459,-40478.7435934,0.00019068,2]
[337386039,1725636638469,-27789.3145851,0.00019068,2]
[337386040,1725636638479,-163970.28250741,0.00019078,2]
[337386041,1725636638489,-150.112233,0.000191,2]
[337386042,1725636638500,-275.175023,0.000191,2]
[337386043,1725636638509,-150.112233,0.000191,2]
[337386044,1725636638519,-150.112233,0.000191,2]
[337386045,1725636638529,-150.112233,0.000191,2]
[337386046,1725636638540,-150.112233,0.000191,2]
[337386047,1725636638550,-111157.25834,0.00019158,2]
[337386048,1725636638560,-159.62806455,0.00019173,2]
[337386049,1725636638570,-159.99840692,0.00019173,2]
[337386050,1725636638580,-500.0,0.00019173,2]
[337386051,1725636638589,-529.18109503,0.00019173,2]
[337386052,1725636638599,-200.22649953,0.00019173,2]
[337386053,1725636638608,-158.68275952,0.00019173,2]
[337386054,1725636638618,-500.0,0.00019173,2]
[337386055,1725636638628,-170.5914481,0.00019173,2]
[337386056,1725636638638,-500.0,0.00019173,2]
[337386057,1725636638648,-500.53621081,0.00019173,2]
[337386058,1725636638657,-500.0,0.00019173,2]
[337386059,1725636638667,-334.44565175,0.00019177,2]
[337386060,1725636638677,-500.0,0.00019177,2]
[337386061,1725636638687,-500.0,0.00019177,2]
[337386062,1725636638696,-500.0,0.00019177,2]
[337386063,1725636638706,-500.0,0.00019177,2]
[337386064,1725636638716,-468.66034253,0.00019177,2]
[337386065,1725636638725,-191.12813093,0.00019177,2]
[337386066,1725636638734,-500.0,0.00019177,2]
[337386067,1725636638749,-603.93645167,0.00019177,2]
[337386068,1725636638765,-500.0,0.00019177,2]
[337386069,1725636638774,-500.0,0.00019177,2]
[337386070,1725636638783,-500.0,0.00019177,2]
[337386071,1725636638793,-500.0,0.00019177,2]
[337386072,1725636638802,-538.6825696,0.00019177,2]
[337386073,1725636638811,-500.0,0.00019177,2]
[337386074,1725636638820,-500.0,0.00019177,2]
[337386075,1725636638830,-500.0,0.00019177,2]
[337386076,1725636638840,-650.0,0.00019177,2]
[337386077,1725636638849,-500.0,0.00019177,2]
[337386078,1725636638858,-500.0,0.00019177,2]
[337386079,1725636638868,-500.0,0.00019177,2]
[337386080,1725636638877,-500.0,0.00019177,2]
[337386081,1725636638887,-500.0,0.00019177,2]
[337386082,1725636638898,-600.0,0.00019177,2]
[337386083,1725636638909,-511.78532171,0.00019178,2]
[337386084,1725636638919,-500.0,0.00019178,2]
[337386085,1725636638928,-502.94807706,0.00019178,2]
[337386086,1725636638939,-500.0,0.00019178,2]
[337386087,1725636638950,-500.0,0.00019178,2]
[337386088,1725636638961,-503.90368232,0.00019178,2]
[337386089,1725636638977,-500.0,0.00019178,2]
[337386090,1725636638986,-500.0,0.00019178,2]
[337386091,1725636638996,-345.54163527,0.00019178,2]
[337386092,1725636639007,-500.0,0.00019178,2]
[337386093,1725636639016,-169.35113573,0.00019178,2]
[337386094,1725636639026,-500.0,0.00019178,2]
[337386095,1725636639036,-500.0,0.00019178,2]
[337386096,1725636639047,-500.0,0.00019178,2]
[337386097,1725636639057,-500.0,0.00019178,2]
[337386098,1725636639066,-500.0,0.00019178,2]
[337386099,1725636639076,-500.0,0.00019178,2]
[337386100,1725636639086,-851.57,0.00019178,2]
[337386101,1725636639095,-500.0,0.00019178,2]
[337386102,1725636639104,-500.0,0.00019178,2]
[337386103,1725636639114,-198.83555248,0.00019178,2]
[337386104,1725636639124,-500.0,0.00019178,2]
[337386105,1725636639134,-500.0,0.00019178,2]
[337386106,1725636639143,-500.0,0.00019178,2]
[337386107,1725636639154,-500.0,0.00019178,2]
[337386108,1725636639164,-500.0,0.00019178,2]
[337386109,1725636639173,-500.0,0.00019178,2]
[337386110,1725636639183,-500.0,0.00019178,2]
[337386111,1725636639193,-500.0,0.00019178,2]
[337386112,1725636639203,-500.0,0.00019178,2]
[337386113,1725636639212,-500.0,0.00019178,2]
[337386114,1725636639221,-500.0,0.00019178,2]
[337386115,1725636639231,-500.0,0.00019178,2]
[337386116,1725636639243,-500.0,0.00019178,2]
[337386117,1725636639253,-510.44626861,0.00019178,2]
[337386118,1725636639263,-500.0,0.00019178,2]
[337386119,1725636639273,-500.0,0.00019178,2]
[337386120,1725636639283,-500.0,0.00019178,2]
[337386121,1725636639294,-505.92632623,0.00019178,2]
[337386122,1725636639303,-500.0,0.00019178,2]
[337386123,1725636639313,-500.0,0.00019178,2]
[337386124,1725636639322,-500.0,0.00019178,2]
[337386125,1725636639332,-500.0,0.00019178,2]
[337386126,1725636639343,-500.0,0.00019178,2]
[337386127,1725636639354,-500.0,0.00019178,2]
[337386128,1725636639364,-500.0,0.00019178,2]
[337386129,1725636639374,-500.0,0.00019178,2]
[337386130,1725636639383,-500.0,0.00019178,2]
[337386131,1725636639394,-500.0,0.00019178,2]
[337386132,1725636639404,-500.0,0.00019178,2]
[337386133,1725636639413,-500.0,0.00019178,2]
[337386134,1725636639423,-500.0,0.00019178,2]
[337386135,1725636639432,-500.0,0.00019178,2]
[337386136,1725636639442,-500.0,0.00019178,2]
[337386137,1725636639451,-500.0,0.00019178,2]
[337386138,1725636639461,-516.17,0.00019178,2]
[337386139,1725636639470,-500.0,0.00019178,2]
[337386140,1725636639479,-500.0,0.00019178,2]
[337386141,1725636639491,-500.0,0.00019178,2]
[337386142,1725636639500,-500.0,0.00019178,2]
[337386143,1725636639510,-500.0,0.00019178,2]
[337386144,1725636639520,-500.0,0.00019178,2]
[337386145,1725636639529,-200.0,0.00019178,2]
[337386146,1725636639539,-246.56051231,0.00019178,2]
[337386147,1725636639548,-500.0,0.00019178,2]
[337386148,1725636639557,-509.80404384,0.00019178,2]
[337386149,1725636639566,-839.2,0.00019178,2]
[337386150,1725636639576,-500.0,0.00019178,2]
[337386151,1725636639586,-500.0,0.00019178,2]
[337386152,1725636639595,-500.0,0.00019178,2]
[337386153,1725636639606,-500.0,0.00019178,2]
[337386154,1725636639615,-557.40402983,0.00019178,2]
[337386155,1725636639625,-500.0,0.00019178,2]
[337386156,1725636639637,-500.0,0.00019178,2]
[337386157,1725636639646,-500.0,0.00019178,2]
[337386158,1725636639657,-500.0,0.00019178,2]
[337386159,1725636639667,-500.0,0.00019178,2]
[337386160,1725636639676,-500.0,0.00019178,2]
[337386161,1725636639686,-500.0,0.00019178,2]
[337386162,1725636639695,-520.76001129,0.00019178,2]
[337386163,1725636639704,-500.0,0.00019178,2]
[337386164,1725636639714,-500.0,0.00019178,2]
[337386165,1725636639723,-500.0,0.00019178,2]
[337386166,1725636639734,-500.0,0.00019178,2]
[337386167,1725636639747,-500.0,0.00019178,2]
[337386168,1725636639757,-500.0,0.00019178,2]
[337386169,1725636639767,-500.0,0.00019178,2]
[337386170,1725636639776,-500.0,0.00019178,2]
[337386171,1725636639786,-500.0,0.00019178,2]
[337386172,1725636639796,-500.0,0.00019178,2]
[337386173,1725636639806,-500.0,0.00019178,2]
[337386174,1725636639817,-500.0,0.00019178,2]
[337386175,1725636639828,-500.0,0.00019178,2]
[337386177,1725636639839,-500.0,0.00019178,2]
[337386178,1725636639850,-500.0,0.00019178,2]
[337386179,1725636639861,-500.0,0.00019178,2]
[337386180,1725636639870,-500.0,0.00019178,2]
[337386181,1725636639880,-516.56,0.00019178,2]
[337386182,1725636639890,-500.0,0.00019178,2]
[337386183,1725636639899,-500.0,0.00019178,2]
[337386184,1725636639909,-500.0,0.00019178,2]
[337386185,1725636639919,-500.0,0.00019178,2]
[337386186,1725636639930,-462.25,0.00019178,2]
[337386187,1725636639939,-500.0,0.00019178,2]
[337386188,1725636639950,-500.0,0.00019178,2]
[337386189,1725636639960,-500.0,0.00019178,2]
[337386190,1725636639973,-500.0,0.00019178,2]
[337386191,1725636639983,-500.0,0.00019178,2]
[337386192,1725636639995,-500.0,0.00019178,2]
[337386193,1725636640006,-562.79119223,0.00019178,2]
[337386194,1725636640016,-407.3402149,0.00019178,2]
[337386195,1725636640026,-500.0,0.00019178,2]
[337386196,1725636640035,-503.76363957,0.00019178,2]
[337386197,1725636640046,-500.0,0.00019178,2]
[337386198,1725636640058,-500.0,0.00019178,2]
[337386199,1725636640067,-500.0,0.00019178,2]
[337386200,1725636640077,-500.0,0.00019178,2]
[337386201,1725636640087,-500.0,0.00019178,2]
[337386202,1725636640096,-500.0,0.00019178,2]
[337386203,1725636640106,-500.0,0.00019178,2]
[337386204,1725636640115,-500.0,0.00019178,2]
[337386205,1725636640126,-500.0,0.00019178,2]
[337386206,1725636640136,-502.41108615,0.00019178,2]
[337386207,1725636640147,-500.0,0.00019178,2]
[337386209,1725636640156,-500.0,0.00019178,2]
[337386210,1725636640166,-500.0,0.00019178,2]
[337386211,1725636640175,-500.0,0.00019178,2]
[337386212,1725636640184,-500.0,0.00019178,2]
[337386213,1725636640194,-500.0,0.00019178,2]
[337386214,1725636640203,-503.12993496,0.00019178,2]
[337386215,1725636640213,-500.0,0.00019178,2]
[337386217,1725636640223,-500.0,0.00019178,2]
[337386219,1725636640232,-500.0,0.00019178,2]
[337386221,1725636640246,-506.8401281,0.00019178,2]
[337386222,1725636640255,-500.0,0.00019178,2]
[337386223,1725636640264,-500.0,0.00019178,2]
[337386224,1725636640273,-500.0,0.00019178,2]
[337386225,1725636640284,-500.0,0.00019178,2]
[337386226,1725636640293,-500.0,0.00019178,2]
[337386227,1725636640303,-279.87132766,0.00019178,2]
[337386228,1725636640313,-500.0,0.00019178,2]
[337386229,1725636640324,-500.0,0.00019178,2]
[337386230,1725636640333,-894.54,0.00019178,2]
[337386231,1725636640343,-256.52233819,0.00019178,2]
[337386232,1725636640352,-500.0,0.00019178,2]
[337386233,1725636640362,-500.0,0.00019178,2]
[337386234,1725636640371,-532.15,0.00019178,2]
[337386235,1725636640381,-500.0,0.00019178,2]
[337386236,1725636640390,-500.0,0.00019178,2]
[337386237,1725636640399,-500.0,0.00019178,2]
[337386238,1725636640409,-436.89814035,0.00019178,2]
[337386239,1725636640418,-500.0,0.00019178,2]
[337386240,1725636640428,-500.0,0.00019178,2]
[337386241,1725636640437,-500.0,0.00019178,2]
[337386242,1725636640446,-500.0,0.00019178,2]
[337386243,1725636640456,-277.60250945,0.00019178,2]
[337386244,1725636640468,-500.0,0.00019178,2]
[337386245,1725636640478,-500.0,0.00019178,2]
[337386246,1725636640490,-500.0,0.00019178,2]
[337386247,1725636640500,-500.0,0.00019178,2]
[337386248,1725636640509,-1106.16,0.00019178,2]
[337386249,1725636640518,-500.0,0.00019178,2]
[337386250,1725636640528,-694.95,0.00019178,2]
[337386251,1725636640537,-500.0,0.00019178,2]
[337386252,1725636640548,-500.0,0.00019178,2]
[337386253,1725636640557,-500.0,0.00019178,2]
[337386254,1725636640566,-500.0,0.00019178,2]
[337386255,1725636640577,-1039.3,0.00019178,2]
[337386256,1725636640587,-500.0,0.00019178,2]
[337386258,1725636640596,-328.1745617,0.00019178,2]
[337386260,1725636640606,-500.0,0.00019178,2]
[337386262,1725636640615,-500.0,0.00019178,2]
[337386264,1725636640625,-500.0,0.00019178,2]
[337386266,1725636640634,-500.0,0.00019178,2]
[337386268,1725636640644,-500.0,0.00019178,2]
[337386270,1725636640653,-500.0,0.00019178,2]
[337386272,1725636640663,-500.0,0.00019178,2]
[337386273,1725636640672,-500.0,0.00019178,2]
[337386276,1725636640682,-1216.21,0.00019178,2]
[337386277,1725636640692,-241.16265495,0.00019178,2]
[337386279,1725636640702,-500.0,0.00019178,2]
[337386282,1725636640714,-500.0,0.00019178,2]
[337386284,1725636640723,-503.37539464,0.00019178,2]
[337386285,1725636640732,-500.0,0.00019178,2]
[337386287,1725636640743,-500.0,0.00019178,2]
[337386288,1725636640754,-542.2,0.00019178,2]
[337386289,1725636640763,-500.0,0.00019178,2]
[337386290,1725636640773,-199.98747304,0.00019178,2]
[337386291,1725636640783,-500.0,0.00019178,2]
[337386292,1725636640792,-500.0,0.00019178,2]
[337386293,1725636640802,-500.0,0.00019178,2]
[337386294,1725636640811,-500.0,0.00019178,2]
[337386295,1725636640820,-500.0,0.00019178,2]
[337386296,1725636640830,-500.0,0.00019178,2]
[337386297,1725636640839,-500.0,0.00019178,2]
[337386298,1725636640849,-626.63,0.00019178,2]
[337386299,1725636640858,-983.07,0.00019178,2]
[337386300,1725636640867,-500.0,0.00019178,2]
[337386302,1725636640877,-500.0,0.00019178,2]
[337386304,1725636640886,-500.0,0.00019178,2]
[337386306,1725636640895,-500.0,0.00019178,2]
[337386308,1725636640904,-500.0,0.00019178,2]
[337386310,1725636640914,-500.0,0.00019178,2]
[337386312,1725636640923,-224.27148364,0.00019178,2]
[337386314,1725636640933,-500.0,0.00019178,2]
[337386316,1725636640942,-500.0,0.00019178,2]
[337386318,1725636640952,-1154.46,0.00019178,2]
[337386320,1725636640962,-908.39,0.00019178,2]
[337386322,1725636640976,-207.89771749,0.00019178,2]
[337386324,1725636640985,-1103.99,0.00019178,2]
[337386326,1725636640997,-500.0,0.00019178,2]
[337386329,1725636641007,-500.0,0.00019178,2]
[337386331,1725636641016,-500.0,0.00019178,2]
[337386333,1725636641026,-500.0,0.00019178,2]
[337386334,1725636641035,-500.0,0.00019178,2]
[337386337,1725636641046,-500.0,0.00019178,2]
[337386339,1725636641055,-1168.93,0.00019178,2]
[337386341,1725636641065,-500.0,0.00019178,2]
[337386343,1725636641075,-500.0,0.00019178,2]
[337386345,1725636641084,-500.0,0.00019178,2]
[337386347,1725636641093,-500.0,0.00019178,2]
[337386349,1725636641102,-500.0,0.00019178,2]
[337386351,1725636641112,-500.0,0.00019178,2]
[337386353,1725636641121,-500.0,0.00019178,2]
[337386355,1725636641130,-786.67,0.00019178,2]
[337386357,1725636641140,-500.0,0.00019178,2]
[337386359,1725636641149,-500.0,0.00019178,2]
[337386361,1725636641158,-500.0,0.00019178,2]
[337386363,1725636641167,-500.0,0.00019178,2]
[337386365,1725636641177,-901.9,0.00019178,2]
[337386367,1725636641186,-513.66884988,0.00019178,2]
[337386369,1725636641195,-181.4378267,0.00019178,2]
[337386371,1725636641205,-175.41172744,0.00019178,2]
[337386373,1725636641214,-500.0,0.00019178,2]
[337386375,1725636641224,-526.65,0.00019178,2]
[337386377,1725636641234,-500.0,0.00019178,2]
[337386379,1725636641245,-500.0,0.00019178,2]
[337386381,1725636641254,-460.07674919,0.00019178,2]
[337386383,1725636641263,-500.0,0.00019178,2]
[337386385,1725636641272,-500.0,0.00019178,2]
[337386387,1725636641282,-500.0,0.00019178,2]
[337386389,1725636641291,-500.0,0.00019178,2]
[337386391,1725636641301,-500.0,0.00019178,2]
[337386393,1725636641311,-500.0,0.00019178,2]
[337386395,1725636641321,-500.0,0.00019178,2]
[337386397,1725636641330,-500.0,0.00019178,2]
[337386399,1725636641339,-500.0,0.00019178,2]
[337386401,1725636641348,-577.4,0.00019178,2]
[337386403,1725636641358,-500.0,0.00019178,2]
[337386405,1725636641367,-1421.19,0.00019178,2]
[337386407,1725636641377,-500.0,0.00019178,2]
[337386409,1725636641388,-500.0,0.00019178,2]
[337386411,1725636641397,-500.0,0.00019178,2]
[337386413,1725636641407,-500.0,0.00019178,2]
[337386415,1725636641417,-500.0,0.00019178,2]
[337386417,1725636641426,-500.0,0.00019178,2]
[337386419,1725636641436,-1727.7,0.00019178,2]
[337386421,1725636641446,-500.0,0.00019178,2]
[337386423,1725636641455,-500.0,0.00019178,2]
[337386425,1725636641467,-500.0,0.00019178,2]
[337386427,1725636641477,-502.81174126,0.00019178,2]
[337386429,1725636641487,-500.0,0.00019178,2]
[337386431,1725636641498,-500.0,0.00019178,2]
[337386433,1725636641507,-500.0,0.00019178,2]
[337386435,1725636641517,-516.9,0.00019178,2]
[337386437,1725636641527,-500.0,0.00019178,2]
[337386439,1725636641537,-527.27,0.00019178,2]
[337386441,1725636641547,-500.0,0.00019178,2]
[337386443,1725636641557,-500.0,0.00019178,2]